[Event "Bijnor Open 2024"]
[Site "Bijnor"]
[Date "2024.03.19"]
[Round "6.5"]
[White "Laxman, R.R."]
[Black "Chehal Nikhil"]
[Result "1-0"]
[ECO "D12"]
[WhiteElo "2331"]
[BlackElo "1749"]
[Annotator "TA"]
[PlyCount "137"]
[EventDate "2024.03.17"]
[EventCountry "IND"]
[SourceTitle "playchess.com"]
[Source "ChessBase"]
[SourceQuality "1"]
[TimeControl "5400+30"]

{[%evp 14,137,27,14,3,17,27,23,52,27,56,38,50,23,16,7,16,-19,13,0,0,0,51,53,53,57,58,71,91,91,78,63,62,67,68,76,65,0,66,44,46,57,48,49,69,69,69,60,69,69,69,69,99,99,116,83,159,159,159,115,115,66,66,66,66,66,66,56,65,56,56,56,57,56,56,56,56,56,115,115,115,115,115,115,115,115,115,115,115,115,115,115,115,8,8,8,8,8,8,8,9,9,9,8,8,8,8,8,29975,29976,29976,29977,29977,29978,29985,29986,29986,-29987,29987,29988,29989,29990,29990,29991,29991,29991]} 1. d4 {[%emt 0:00:09]} d5 {[%emt 0:02:15]} 2. Nf3 {[%emt 0:00:05]} Nf6 {[%emt 0:00:17]} 3. c4 {[%emt 0:00:06]} c6 {[%emt 0:00:10]} 4. e3 {[%emt 0:00:05]} Bf5 {[%emt 0:00:09]} 5. Nc3 {[%emt 0:00:11]} e6 {[%emt 0:00:16]} 6. Nh4 {[%emt 0:00:18]} Bg6 {[%emt 0:00:24]} 7. Nxg6 {[%emt 0:00:13]} hxg6 {[%emt 0:00:08]} 8. Bd3 {[%emt 0:00:07]} Nbd7 {[%emt 0:14:00]} 9. h3 {[%emt 0:02:18]} dxc4 {[%emt 0:03:54]} 10. Bxc4 {[%emt 0:00:08]} b5 {[%emt 0:00:04] Weiß hat minimalen Vorteil.} 11. Be2 {[%emt 0:01:13][%cal Bc4e2,Be2f3,Bf3e4][%mdl 32]} a6 {[%emt 0:01:06]} 12. O-O {[%emt 0:00:52]} Be7 {[%emt 0:03:58]} 13. Bd2 {[%emt 0:04:11]} O-O {[%emt 0:01:38]} 14. Bf3 {[%emt 0:00:17]} Rc8 {[%emt 0:01:41]} 15. a4 {[%emt 0:00:32]} Qb6 {[%emt 0:05:00]} 16. Ne4 {[%emt 0:03:57]} Nxe4 {[%emt 0:05:27]} 17. Bxe4 {[%emt 0:00:02]} Nf6 {[%emt 0:00:20]} (17... c5 $11) 18. Bf3 $14 {[%emt 0:00:07]} c5 {[%emt 0:00:57]} 19. axb5 {[%emt 0:00:11]} Qxb5 {[%emt 0:16:15]} 20. Bc3 {[%emt 0:00:45]} Nd5 {[%emt 0:02:25]} 21. Bxd5 {[%emt 0:01:00]} exd5 {[%emt 0:00:52]} 22. dxc5 {[%emt 0:00:10]} Rxc5 {[%emt 0:00:59]} 23. Ra5 {[%emt 0:00:39]} Qc4 {[%emt 0:02:18]} 24. Ra4 {[%emt 0:01:01]} Qb5 {[%emt 0:01:02]} 25. Ra5 {[%emt 0:01:32]} Qc4 {[%emt 0:00:08]} 26. Rxc5 {[%emt 0:00:13]} Bxc5 {[%emt 0:00:51]} 27. Qg4 {[%emt 0:05:53]} Qxg4 {[%emt 0:10:23]} 28. hxg4 {[%emt 0:00:05][%mdl 4096] Endspiel. KRB-KRB} Rb8 {[%emt 0:00:12]} 29. Ra1 {[%emt 0:01:49]} Rb6 {[%emt 0:02:25]} 30. Ra5 {[%emt 0:00:14]} Bb4 {[%emt 0:00:16]} 31. Rxd5 {[%emt 0:00:12]} Bxc3 {[%emt 0:00:10]} 32. bxc3 {[%emt 0:00:02] KR-KR} Rb1+ {[%emt 0:00:30]} 33. Kh2 {[%emt 0:00:02]} Rc1 {[%emt 0:00:14]} 34. Rc5 {[%emt 0:01:12]} a5 {[%emt 0:01:32]} 35. Rxa5 $16 {[%emt 0:00:03]} Rxc3 {[%emt 0:00:10]} 36. g5 {[%emt 0:01:36]} f6 {[%emt 0:02:45]} 37. gxf6 {[%emt 0:01:49]} (37. g3 $16) 37... gxf6 $14 {[%emt 0:00:11]} 38. Ra7 {[%emt 0:00:06]} Rc5 {[%emt 0:05:57]} 39. Kg3 {[%emt 0:00:47]} Rc4 {[%emt 0:01:25]} 40. f3 {[%emt 0:00:08]} Rb4 {[%emt 0:00:56]} 41. e4 {[%emt 0:00:11]} Rb5 {[%emt 0:00:31]} 42. Kf4 {[%emt 0:00:15]} Rg5 {[%emt 0:00:29]} 43. g3 {[%emt 0:00:21]} Rb5 {[%emt 0:00:46]} 44. Rd7 {[%emt 0:00:19]} Ra5 {[%emt 0:02:04]} 45. Rd5 {[%emt 0:00:15]} Ra6 {[%emt 0:00:43] [#]} (45... Ra3 $1 $14) 46. g4 $1 $16 {[%emt 0:00:09] Zielt auf g5 ab.} Ra3 {[%emt 0:04:22]} 47. g5 {[%emt 0:00:24]} fxg5+ {[%emt 0:00:38]} 48. Rxg5 {[%emt 0:00:04]} ({Natürlich nicht} 48. Kxg5 $6 Kf7 $11) 48... Kf7 {[%emt 0:00:11]} 49. Rb5 {[%emt 0:00:06]} Ke6 {[%emt 0:04:14]} 50. Rb6+ {[%emt 0:00:21]} Kf7 {[%emt 0:00:07]} 51. Rd6 {[%emt 0:00:13] Weiß steht aktiver.} Rb3 {[%emt 0:00:43]} 52. Kg4 {[%emt 0:00:05]} Rb1 {[%emt 0:00:29]} 53. e5 {[%emt 0:00:16]} (53. Ra6 $16) 53... Rg1+ $1 $11 {[%emt 0:02:29]} 54. Kf4 {[%emt 0:00:05]} g5+ {[%emt 0:03:46]} 55. Kf5 {[%emt 0:00:22]} Rg3 $1 {[%emt 0:00:09]} 56. Ke4 {[%emt 0:01:24]} Rg1 {[%emt 0:02:31]} 57. Rf6+ {[%emt 0:00:24]} Ke7 {[%emt 0:00:09]} 58. Ra6 {[%emt 0:00:59] Und jetzt Kf5 wäre schön.} (58. Kf5 $5) 58... Re1+ {[%emt 0:00:52]} 59. Kf5 {[%emt 0:00:24]} Re3 {[%emt 0:00:24]} 60. Ra7+ {[%emt 0:00:15]} Kf8 $2 {[%emt 0:00:13][%mdl 8192] [#]} (60... Kd8 $11) 61. f4 $1 {[%emt 0:01:47]} ({Schwächer ist} 61. Kxg5 Rxf3 62. e6 Ke8 $11) 61... gxf4 {[%emt 0:00:22][%cal Bg5f4,Bf4f3,Bf3f2][%mdl 32]} 62. Kf6 $1 {[%emt 0:00:22][%cal Ra7a8]} Ke8 {[%emt 0:00:51]} 63. e6 {[%emt 0:00:06][%cal Ra7a8]} Rd3 {[%emt 0:00:36]} 64. Ra8+ {[%emt 0:00:05]} Rd8 {[%emt 0:00:07]} 65. Rxd8+ {[%emt 0:00:02]} Kxd8 {[%emt 0:00:12]} 66. Kf7 {[%emt 0:00:02] Weiß setzt Matt.} f3 {[%emt 0:00:35]} 67. e7+ {[%emt 0:00:02]} Kc7 {[%emt 0:00:05]} 68. e8=Q {[%emt 0:00:04]} ({Nicht} 68. e8=B Kd6 $11) 68... f2 {[%emt 0:00:09]} 69. Qe5+ {[%emt 0:00:04] Gewichteter Fehlerwert: Weiß=0.12 (sehr präzise) /Schwarz=0.22 (präzise) .  Verlustzug:     	---       	Schwarz=1     Fehler:       	Weiß=2     	Schwarz=3     Ungenau:       	Weiß=2     	Schwarz=4     OK:         	Weiß=20    	Schwarz=15    Bester:       	Weiß=1     	Schwarz=6     Stark:        	Weiß=2     	Schwarz=2} 1-0

[Event "Bijnor Open 2024"]
[Site "Bijnor"]
[Date "2024.03.19"]
[Round "6.6"]
[White "Ishan Ghosh"]
[Black "Vrashank Chouhan"]
[Result "1/2-1/2"]
[ECO "D13"]
[WhiteElo "1768"]
[BlackElo "2330"]
[Annotator "TA"]
[PlyCount "110"]
[EventDate "2024.03.17"]
[EventCountry "IND"]
[SourceTitle "playchess.com"]
[Source "ChessBase"]
[SourceQuality "1"]
[TimeControl "5400+30"]

{[%evp 15,110,10,12,12,10,0,0,0,0,0,0,0,11,0,27,22,32,30,52,52,103,97,121,44,40,30,46,37,30,6,0,0,36,5,50,49,56,31,47,0,6,20,12,13,18,20,20,23,20,5,2,7,24,31,35,27,18,29,86,82,73,66,126,111,147,110,99,95,252,32,78,79,64,18,22,17,11,11,387,0,0,0,0,0,0,0,0,0,0,0,0,0,0,0,0,0,0]} 1. d4 {[%emt 0:00:06]} d5 {[%emt 0:02:01]} 2. c4 {[%emt 0:00:26]} c6 {[%emt 0:00:07]} 3. cxd5 {[%emt 0:00:22]} cxd5 {[%emt 0:00:04]} 4. Nc3 {[%emt 0:00:51]} Nf6 {[%emt 0:00:07]} 5. Bf4 {[%emt 0:00:29]} Nc6 {[%emt 0:00:07]} 6. e3 {[%emt 0:00:18]} a6 {[%emt 0:00:36]} 7. Bd3 {[%emt 1:31:28]} Bg4 {[%emt 0:00:43]} 8. Nf3 {[%emt 0:00:00]} e6 {[%emt 0:04:21]} 9. h3 {[%emt 0:00:00]} Bh5 {[%emt 0:00:12]} 10. O-O {[%emt 0:00:00]} Be7 {[%emt 0:00:50]} 11. Rc1 {[%emt 0:00:00]} O-O {[%emt 0:04:34]} 12. Be2 {[%emt 0:00:00]} Rc8 {[%emt 0:10:32]} 13. Ne1 {[%emt 0:00:00]} Bg6 {[%emt 0:04:32]} 14. Nd3 {[%emt 0:00:00]} Nd7 {[%emt 0:03:23]} 15. Na4 {[%emt 0:00:00]} Na5 {[%emt 0:13:37]} 16. Ndc5 {[%emt 0:00:00]} e5 {[%emt 0:12:53]} 17. Bh2 {[%emt 0:00:00]} (17. Bxe5 Nxe5 18. dxe5 b5 $17) 17... exd4 {[%emt 0:17:20]} ({Vorzuziehen ist} 17... Nxc5 $14 18. Nxc5 Bxc5 19. dxc5 (19. Rxc5 Rxc5 20. dxc5 f6 $11) 19... Re8) 18. exd4 $16 {[%emt 0:00:00]} (18. Qxd4 $6 Nxc5 19. Nxc5 Bf6 $11) 18... b5 {[%emt 0:01:33]} 19. Nxd7 {[%emt 0:00:00]} (19. Bg4 $1 $16 Nxc5 20. Nxc5) 19... Rxc1 $14 {[%emt 0:00:07]} 20. Qxc1 {[%emt 0:00:00]} Qxd7 {[%emt 0:00:04]} 21. Nc5 {[%emt 0:00:00]} Qa7 {[%emt 0:01:13]} 22. Bf3 {[%emt 0:00:00]} Nc6 {[%emt 0:03:25]} 23. Nb3 {[%emt 0:00:00]} (23. Bxd5 $2 {ist das falsche Schlagen.} Nxd4 24. Kh1 Bxc5 $19 (24... Qxc5 $2 25. Qxc5 Bxc5 26. Bb7 $19)) 23... Qd7 {[%emt 0:02:20]} 24. Qf4 {[%emt 0:00:00]} Bf6 {[%emt 0:02:36]} 25. Rc1 {[%emt 0:01:29]} Re8 {[%emt 0:04:01]} 26. Bg3 {[%emt 0:02:10]} Nb4 {[%emt 0:04:49][%cal Od7e7]} 27. Nc5 {[%emt 0:03:09]} (27. Rc7 $14 {ist eher angebracht.} Qd8 28. Qd2) 27... Qd8 {[%emt 0:01:23][%cal Of6g5] [#] ...Bg5! wäre nun fies.} 28. Qd2 {[%emt 0:01:18]} Bg5 {[%emt 0:03:43]} 29. Bf4 {[%emt 0:00:11]} Bxf4 {[%emt 0:00:05]} 30. Qxf4 {[%emt 0:00:04] Mit der Idee Qd2.} Nxa2 {[%emt 0:00:04]} 31. Ra1 {[%emt 0:01:20]} Nb4 {[%emt 0:00:06]} 32. Qd2 {[%emt 0:01:21]} a5 {[%emt 0:04:01]} 33. Nb7 {[%emt 0:00:18]} Qb6 {[%emt 0:00:50]} 34. Nxa5 {[%emt 0:01:00]} Nd3 {[%emt 0:00:33]} 35. Nb3 {[%emt 0:00:37][%cal Of3e2]} Qf6 {[%emt 0:00:33]} 36. Bxd5 {[%emt 0:00:51]} Nf4 {[%emt 0:00:01]} (36... h6 $11) 37. Ra8 $16 {[%emt 0:00:32]} Rxa8 {[%emt 0:00:58]} 38. Bxa8 {[%emt 0:00:01]} Bd3 {[%emt 0:00:34] [#]} (38... Nd3 $14) 39. Qe3 $1 $40 {[%emt 0:00:43][%cal Re3e8][%mdl 128] Weiss will per K.O. gewinnen.} g6 {[%emt 0:00:24]} 40. Kh2 {[%emt 0:00:39]} Bc4 {[%emt 0:00:33]} 41. Nc5 {[%emt 0:00:24] Und jetzt Ne4 wäre schön.} Ne2 $2 {[%emt 0:00:31]} (41... Bd5 $16) 42. d5 $2 {[%emt 0:00:41]} (42. b3 $18 Nxd4 43. Ne4 (43. bxc4 Qd6+ 44. g3 Qxc5 $18) 43... Qe5+ 44. f4) 42... Bxd5 {[%emt 0:00:24]} 43. Bxd5 {[%emt 0:00:30]} ({Ein No Go ist} 43. Qxe2 Bxa8 44. Qxb5 (44. Qe8+ Kg7 $11) 44... Qf4+ 45. Kg1 Qc1+ 46. Kh2 Qf4+ 47. Kg1 Qc1+ 48. Kh2 Qf4+ $11) 43... Qd6+ {[%emt 0:00:02]} 44. g3 {[%emt 0:00:31]} (44. f4 $14 Qxd5 45. Ne4) 44... Qxd5 $11 {[%emt 0:00:04][%mdl 4096] Endspiel. KQN-KQN} 45. Ne4 {[%emt 0:00:32] Weiss droht Nf6+ und Matt.} Qd1 {[%emt 0:00:34][%csl Ge2][%cal Rd1g1]} 46. Kg2 {[%emt 0:00:29] Weiss will Nf6+ spielen.} Nd4 $2 {[%emt 0:00:54][%mdl 8192]} (46... Qg1+ $11 {und Schwarz ist OK.} 47. Kf3 Nc1) 47. Ng5 $2 {[%emt 0:00:31]} (47. Nc3 $18 Qc2 48. Qxd4 Qxb2 49. Qd8+ Kg7 50. Ne4) 47... Ne6 $1 {[%emt 0:00:44] Die Stellung ist ausgeglichen.} 48. Nxe6 {[%emt 0:00:29]} Qd5+ {[%emt 0:00:02]} 49. Kg1 {[%emt 0:00:31]} fxe6 {[%emt 0:00:11] KQ-KQ} 50. h4 {[%emt 0:00:24]} e5 {[%emt 0:00:13]} 51. Qc3 {[%emt 0:01:15]} Kg7 {[%emt 0:01:27]} 52. Qc7+ {[%emt 0:00:00]} Kg8 {[%emt 0:00:49]} 53. Qe7 {[%emt 0:00:18]} Qd1+ {[%emt 0:00:23]} 54. Kg2 {[%emt 0:00:21] Droht stark Qe8+.} Qd5+ {[%emt 0:00:06]} 55. Kg1 {[%emt 0:00:15]} Qd1+ {[%emt 0:00:05] Gewichteter Fehlerwert: Weiß=0.27 (präzise) /Schwarz=0.32.  Verlustzug:     	---       	Schwarz=1     Gewinn verpasst:   	Weiß=2     	---        Fehler:       	Weiß=3     	Schwarz=5     Ungenau:       	Weiß=1     	Schwarz=4     OK:         	Weiß=20    	Schwarz=21    Bester:       	---       	Schwarz=3     Stark:        	---       	Schwarz=1} 1/2-1/2

[Event "Bijnor Open 2024"]
[Site "Bijnor"]
[Date "2024.03.19"]
[Round "6.7"]
[White "Priyansh Arora"]
[Black "Vignesh B"]
[Result "0-1"]
[ECO "A41"]
[WhiteElo "1695"]
[BlackElo "2209"]
[Annotator "RC"]
[PlyCount "90"]
[EventDate "2024.03.17"]
[EventCountry "IND"]
[SourceTitle "playchess.com"]
[Source "ChessBase"]
[SourceQuality "1"]
[TimeControl "5400+30"]

1. d4 {[%emt 0:00:03]} d6 {[%emt 0:04:23]} 2. Nf3 {[%emt 0:00:12]} g6 {[%emt 0:00:20]} 3. g3 {[%emt 0:00:12]} Bg7 {[%emt 0:00:06]} 4. Bg2 {[%emt 0:00:26]} Nd7 {[%emt 0:00:23]} 5. O-O {[%emt 0:00:13]} e5 {[%emt 0:00:06]} 6. e3 {[%emt 0:02:29]} e4 {[%emt 0:01:10]} 7. Nfd2 {[%emt 0:03:28]} d5 {[%emt 0:01:16]} 8. c4 {[%emt 0:00:29]} c6 {[%emt 0:00:05]} 9. Nc3 {[%emt 0:01:17]} Ngf6 {[%emt 0:00:06]} 10. Qb3 {[%emt 0:05:30]} Nb6 {[%emt 0:01:59]} 11. cxd5 {[%emt 0:00:45]} cxd5 {[%emt 0:00:08]} 12. a4 {[%emt 0:00:20]} a5 {[%emt 0:00:05]} 13. Qa3 {[%emt 0:00:33]} Bf8 {[%emt 0:00:05]} 14. Qb3 {[%emt 0:05:45]} h5 {[%emt 0:00:17]} 15. f3 {[%emt 0:04:47]} exf3 {[%emt 0:05:17]} 16. Nxf3 {[%emt 0:01:20]} Bg7 {[%emt 0:00:48]} 17. Ne5 {[%emt 0:03:36]} O-O {[%emt 0:00:51]} 18. Bd2 {[%emt 0:00:51]} Be6 {[%emt 0:00:32]} 19. Rac1 {[%emt 0:00:55]} Ng4 {[%emt 0:03:25]} 20. Nxg4 {[%emt 0:06:16]} hxg4 {[%emt 0:00:07]} 21. Rfd1 {[%emt 0:00:38]} Re8 {[%emt 0:06:31]} 22. Bf1 {[%emt 0:06:43]} Nc4 {[%emt 0:01:32]} 23. Bxc4 {[%emt 0:05:53]} dxc4 {[%emt 0:00:11]} 24. Qa2 {[%emt 0:01:11]} Rc8 {[%emt 0:12:10]} 25. Be1 {[%emt 0:06:40]} Bf5 {[%emt 0:18:39]} 26. Bf2 {[%emt 0:04:58]} Bh6 {[%emt 0:00:52]} 27. Re1 {[%emt 0:01:56]} Qb6 {[%emt 0:01:51]} 28. Rcd1 {[%emt 0:05:40]} Bc2 {[%emt 0:00:37]} 29. Rd2 {[%emt 0:05:20]} Bd3 {[%emt 0:00:28]} 30. Qa3 {[%emt 0:01:58]} Bf8 {[%emt 0:02:32]} 31. Qa1 {[%emt 0:01:01]} Bb4 {[%emt 0:00:41]} 32. Qd1 {[%emt 0:00:52]} Bxc3 {[%emt 0:09:17]} 33. bxc3 {[%emt 0:00:27]} Re4 {[%emt 0:00:13]} 34. Qa1 {[%emt 0:01:30]} Kg7 {[%emt 0:00:31]} 35. Rb2 {[%emt 0:01:11]} Qf6 {[%emt 0:00:20]} 36. Qd1 {[%emt 0:09:23]} Rh8 {[%emt 0:00:46]} 37. Kg2 {[%emt 0:14:12]} Ree8 {[%emt 0:03:23]} 38. Qxg4 {[%emt 0:00:00]} Bf5 {[%emt 0:00:30]} 39. Qf4 {[%emt 0:00:00]} g5 {[%emt 0:00:06]} 40. Qc7 {[%emt 0:00:00]} Be4+ {[%emt 0:00:06]} 41. Kf1 {[%emt 0:00:00]} Rxh2 {[%emt 0:00:07]} 42. g4 {[%emt 0:00:00]} Rh1+ {[%emt 0:00:19]} 43. Ke2 {[%emt 0:00:00]} Qf3+ {[%emt 0:00:06]} 44. Kd2 {[%emt 0:00:00]} Qxf2+ {[%emt 0:00:08]} 45. Kc1 {[%emt 0:00:00]} Rxe1# {[%emt 0:00:07]} 0-1

[Event "Bijnor Open 2024"]
[Site "Bijnor"]
[Date "2024.03.19"]
[Round "6.8"]
[White "Mahindrakar Indrajeet"]
[Black "Vinayak Singh Yadav"]
[Result "1-0"]
[ECO "B22"]
[WhiteElo "2136"]
[BlackElo "1696"]
[Annotator "RC"]
[PlyCount "117"]
[EventDate "2024.03.17"]
[EventCountry "IND"]
[SourceTitle "playchess.com"]
[Source "ChessBase"]
[SourceQuality "1"]
[TimeControl "5400+30"]

1. e4 {[%emt 0:04:45]} c5 {[%emt 0:00:07]} 2. c3 {[%emt 0:00:34]} Nf6 {[%emt 0:00:17]} 3. e5 {[%emt 0:00:33]} Nd5 {[%emt 0:00:09]} 4. d4 {[%emt 0:00:13]} cxd4 {[%emt 0:00:17]} 5. Qxd4 {[%emt 0:00:07]} e6 {[%emt 0:02:56]} 6. Nf3 {[%emt 0:00:08]} Nc6 {[%emt 0:00:55]} 7. Qe4 {[%emt 0:00:02]} d6 {[%emt 0:02:16]} 8. Bb5 {[%emt 0:00:05]} Bd7 {[%emt 0:07:25]} 9. c4 {[%emt 0:00:15]} Nc7 {[%emt 0:01:54]} 10. exd6 {[%emt 0:00:25]} Bxd6 {[%emt 0:00:41]} 11. O-O {[%emt 0:00:18]} Qe7 {[%emt 0:03:37]} 12. Nc3 {[%emt 0:01:50]} O-O {[%emt 0:05:12]} 13. Rd1 {[%emt 0:00:45]} Rad8 {[%emt 0:03:30]} 14. Ba4 {[%emt 0:08:36]} h6 {[%emt 0:08:42]} 15. Rxd6 {[%emt 0:09:39]} Qxd6 {[%emt 0:10:20]} 16. Bf4 {[%emt 0:00:06]} e5 {[%emt 0:03:24]} 17. Nxe5 {[%emt 0:00:09]} Nxe5 {[%emt 0:02:18]} 18. Bxe5 {[%emt 0:00:30]} Qb6 {[%emt 0:03:34]} 19. Bxc7 {[%emt 0:54:53]} Qxc7 {[%emt 0:01:08]} 20. Nd5 {[%emt 0:00:10]} Qd6 {[%emt 0:08:32]} 21. Bxd7 {[%emt 0:01:08]} Qxd7 {[%emt 0:01:57]} 22. g3 {[%emt 0:11:40]} Rfe8 {[%emt 0:04:34]} 23. Qf3 {[%emt 0:01:40]} f6 {[%emt 0:15:53]} 24. a4 {[%emt 0:01:21]} b6 {[%emt 0:01:45]} 25. Kg2 {[%emt 0:00:58]} Qf7 {[%emt 0:02:48]} 26. b3 {[%emt 0:00:15]} Re5 {[%emt 0:01:37]} 27. Rd1 {[%emt 0:00:35]} Rde8 {[%emt 0:00:35]} 28. Ne3 {[%emt 0:00:42]} Qe6 {[%emt 0:02:34]} 29. Rd3 {[%emt 0:00:18]} Qe7 {[%emt 0:01:04]} 30. h4 {[%emt 0:00:18]} Qe6 {[%emt 0:01:42]} 31. h5 {[%emt 0:00:35]} Qf7 {[%emt 0:02:19]} 32. Nf5 {[%emt 0:00:14]} Qe6 {[%emt 0:01:13]} 33. Nd4 {[%emt 0:01:55]} Qf7 {[%emt 0:00:24]} 34. Nf5 {[%emt 0:00:13]} Qe6 {[%emt 0:00:20]} 35. g4 {[%emt 0:00:17]} Re4 {[%emt 0:00:59]} 36. Rd6 {[%emt 0:01:00]} Qf7 {[%emt 0:00:33]} 37. Rd5 {[%emt 0:00:52]} Qe6 {[%emt 0:00:45]} 38. Rd6 {[%emt 0:00:36]} Qf7 {[%emt 0:00:09]} 39. Qd1 {[%emt 0:00:15]} Re1 {[%emt 0:00:37]} 40. Qd5 {[%emt 0:00:50]} Qxd5+ {[%emt 0:00:38]} 41. Rxd5 {[%emt 0:00:14]} Rb1 {[%emt 0:00:47]} 42. Rd7 {[%emt 0:00:24]} Rxb3 {[%emt 0:00:04]} 43. Rxg7+ {[%emt 0:00:32]} Kh8 {[%emt 0:00:27]} 44. Rxa7 {[%emt 0:00:26]} Re4 {[%emt 0:00:48]} 45. Ra8+ {[%emt 0:00:36]} Kh7 {[%emt 0:00:09]} 46. Ra7+ {[%emt 0:00:04]} Kh8 {[%emt 0:00:14]} 47. f3 {[%emt 0:00:11]} Rxc4 {[%emt 0:00:14]} 48. Kg3 {[%emt 0:01:17]} Rcc3 {[%emt 0:00:48]} 49. Nh4 {[%emt 0:00:06]} Ra3 {[%emt 0:00:19]} 50. Kf4 {[%emt 0:00:26]} Rc5 {[%emt 0:01:26]} 51. Kg3 {[%emt 0:00:20]} Rcc3 {[%emt 0:00:30]} 52. Rf7 {[%emt 0:00:29]} Rxa4 {[%emt 0:00:25]} 53. Rxf6 {[%emt 0:00:07]} b5 {[%emt 0:00:23]} 54. Rxh6+ {[%emt 0:00:06]} Kg7 {[%emt 0:01:16]} 55. Rb6 {[%emt 0:00:07]} b4 {[%emt 0:00:00]} 56. h6+ {[%emt 0:00:36]} Kh7 {[%emt 0:00:00]} 57. g5 {[%emt 0:00:08]} b3 {[%emt 0:00:00]} 58. Rb7+ {[%emt 0:00:07]} Kg8 {[%emt 0:00:00]} 59. h7+ {[%emt 0:00:07]} 1-0

[Event "Bijnor Open 2024"]
[Site "Bijnor"]
[Date "2024.03.19"]
[Round "6.9"]
[White "Srivardhan Reddy Devareddy"]
[Black "Daksh Goyal"]
[Result "0-1"]
[ECO "B08"]
[WhiteElo "1662"]
[BlackElo "1926"]
[Annotator "RC"]
[PlyCount "76"]
[EventDate "2024.03.17"]
[EventCountry "IND"]
[SourceTitle "playchess.com"]
[Source "ChessBase"]
[SourceQuality "1"]
[TimeControl "5400+30"]

1. d4 {[%emt 0:03:43]} Nf6 {[%emt 0:00:39]} 2. Nf3 {[%emt 0:00:13]} g6 {[%emt 0:00:30]} 3. Nc3 {[%emt 0:00:26]} Bg7 {[%emt 0:01:11]} 4. e4 {[%emt 0:00:07]} d6 {[%emt 0:00:09]} 5. h3 {[%emt 0:00:18]} O-O {[%emt 0:07:53]} 6. Be3 {[%emt 0:01:55]} e5 {[%emt 0:05:12]} 7. dxe5 {[%emt 0:01:44]} dxe5 {[%emt 0:00:19]} 8. Qxd8 {[%emt 0:08:59]} Rxd8 {[%emt 0:00:03]} 9. Bc4 {[%emt 0:31:02]} Nc6 {[%emt 0:10:00]} 10. Ng5 {[%emt 0:00:07]} Rd7 {[%emt 0:00:30]} 11. Bb5 {[%emt 0:01:51]} Ne8 {[%emt 0:08:09]} 12. g4 {[%emt 0:15:59]} Nd6 {[%emt 0:00:51]} 13. O-O-O {[%emt 0:01:33]} Nxb5 {[%emt 0:06:58]} 14. Nxb5 {[%emt 0:00:05]} Nd4 {[%emt 0:00:25]} 15. Bxd4 {[%emt 0:01:49]} exd4 {[%emt 0:02:54]} 16. f4 {[%emt 0:00:10]} a6 {[%emt 0:03:20]} 17. Na3 {[%emt 0:00:06]} b5 {[%emt 0:00:30]} 18. e5 {[%emt 0:00:27]} f6 {[%emt 0:03:39]} 19. exf6 {[%emt 0:03:11]} Bxf6 {[%emt 0:00:48]} 20. Ne4 {[%emt 0:00:06]} Be7 {[%emt 0:00:52]} 21. Rhe1 {[%emt 0:02:04]} Bb7 {[%emt 0:04:11]} 22. f5 {[%emt 0:07:01]} gxf5 {[%emt 0:13:14]} 23. gxf5 {[%emt 0:00:07]} Rf8 {[%emt 0:01:07]} 24. f6 {[%emt 0:02:02]} Bxa3 {[%emt 0:02:06]} 25. bxa3 {[%emt 0:00:50]} Bxe4 {[%emt 0:02:01]} 26. Rxe4 {[%emt 0:00:06]} Rxf6 {[%emt 0:00:09]} 27. Rexd4 {[%emt 0:00:56]} Rxd4 {[%emt 0:00:06]} 28. Rxd4 {[%emt 0:00:04]} Rf3 {[%emt 0:00:08]} 29. a4 {[%emt 0:02:06]} Kg7 {[%emt 0:05:44]} 30. axb5 {[%emt 0:00:57]} axb5 {[%emt 0:00:01]} 31. Rd7+ {[%emt 0:00:17]} Rf7 {[%emt 0:00:42]} 32. Rxf7+ {[%emt 0:00:23]} Kxf7 {[%emt 0:00:03]} 33. c4 {[%emt 0:00:13]} b4 {[%emt 0:10:37]} 34. Kc2 {[%emt 0:01:45]} Ke6 {[%emt 0:00:12]} 35. Kd3 {[%emt 0:00:34]} Ke5 {[%emt 0:00:07]} 36. c5 {[%emt 0:00:18]} Kd5 {[%emt 0:00:11]} 37. c6 {[%emt 0:00:05]} Kc5 {[%emt 0:03:22]} 38. h4 {[%emt 0:00:14]} h5 {[%emt 0:01:31]} 0-1